fUST/lending_fUST_20250814
["ID","MTS","AMOUNT","RATE_DAILY","PERIOD"]
[379075378,1755115906994,-788.14,0.00022739,2]
[379075379,1755115907003,-258.839888,0.00022739,7]
[379075380,1755115907012,-460.0,0.00022739,2]
[379075381,1755115907022,-258.839888,0.00022739,7]
[379075382,1755115907032,-740.52,0.00022739,2]
[379075383,1755115907041,-460.0,0.00022739,2]
[379075384,1755115907050,-1140.3,0.00022739,2]
[379075385,1755115907061,-863.07,0.00022739,2]
[379075386,1755115907070,-1663.95,0.00022739,2]
[379075387,1755115907079,-961.59,0.00022739,2]
[379075388,1755115907088,-460.0,0.00022739,2]
[379075389,1755115907098,-1069.56,0.00022739,2]
[379075390,1755115907107,-460.0,0.00022739,2]
[379075391,1755115907117,-1437.38,0.00022739,2]
[379075392,1755115907127,-460.0,0.00022739,2]
[379075393,1755115907136,-460.0,0.00022739,2]
[379075394,1755115907145,-460.0,0.00022739,2]
[379075395,1755115907155,-151.0,0.00022739,7]
[379075396,1755115907164,-460.0,0.00022739,2]
[379075397,1755115907173,-460.0,0.00022739,2]
[379075398,1755115907188,-460.0,0.00022739,2]
[379075399,1755115907197,-460.0,0.00022739,2]
[379075400,1755115907206,-467.85,0.00022739,2]
[379075401,1755115907215,-460.0,0.00022739,2]
[379075402,1755115907227,-460.0,0.00022739,2]
[379075403,1755115907236,-602.53,0.00022739,2]
[379075404,1755115907246,-905.73,0.00022739,2]
[379075405,1755115907255,-460.0,0.00022739,2]
[379075406,1755115907265,-2758.86,0.00022739,2]
[379075407,1755115907274,-460.0,0.00022739,2]
[379075408,1755115907284,-735.89,0.00022739,2]
[379075409,1755115907293,-504.54,0.00022739,2]
[379075410,1755115907302,-460.0,0.00022739,2]
[379075411,1755115907312,-619.7,0.00022739,2]
[379075412,1755115907321,-618.3,0.00022739,2]
[379075413,1755115907331,-577.53,0.00022739,2]
[379075414,1755115907340,-477.37,0.00022739,2]
[379075415,1755115907350,-460.0,0.00022739,2]
[379075416,1755115907359,-621.59,0.00022739,2]
[379075417,1755115907369,-718.3,0.00022739,2]
[379075418,1755115907378,-482.48,0.00022739,2]
[379075419,1755115907389,-460.0,0.00022739,2]
[379075420,1755115907398,-460.0,0.00022739,2]
[379075421,1755115907407,-841.58,0.00022739,2]
[379075422,1755115907417,-460.0,0.00022739,2]
[379075423,1755115907428,-460.0,0.00022739,2]
[379075424,1755115907437,-153.41598132,0.00022739,2]
[379075425,1755115907447,-460.0,0.00022739,2]
[379075426,1755115907456,-460.0,0.00022739,2]
[379075427,1755115907466,-1057.0,0.00022739,2]
[379075428,1755115907475,-725.98,0.00022739,2]
[379075429,1755115907484,-460.0,0.00022739,2]
[379075430,1755115907493,-1761.85,0.00022739,2]
[379075431,1755115907503,-243.5208652,0.00022739,2]
[379075432,1755115907512,-573.0,0.00022739,2]
[379075433,1755115907521,-668.47,0.00022739,2]
[379075434,1755115907531,-611.81,0.00022739,2]
[379075435,1755115907539,-1341.69,0.00022739,2]
[379075436,1755115907549,-659.86,0.00022739,2]
[379075437,1755115907559,-460.0,0.00022739,2]
[379075438,1755115907569,-740.97,0.00022739,2]
[379075439,1755115907578,-318.60329277,0.00022739,2]
[379075440,1755115907587,-460.0,0.00022739,2]
[379075441,1755115907596,-563.24,0.00022739,2]
[379075442,1755115907605,-758.65,0.00022739,2]
[379075443,1755115907614,-2239.5,0.00022739,2]
[379075444,1755115907623,-1881.39,0.00022739,2]
[379075445,1755115907633,-460.0,0.00022739,2]
[379075446,1755115907642,-850.59,0.00022739,2]
[379075447,1755115907651,-2386.49,0.00022739,2]
[379075448,1755115907660,-989.38,0.00022739,2]
[379075449,1755115907670,-460.0,0.00022739,2]
[379075450,1755115907680,-753.2,0.00022739,2]
[379075451,1755115907690,-6147.95,0.00022739,2]
[379075452,1755115907699,-460.0,0.00022739,2]
[379075453,1755115907709,-1410.98,0.00022739,2]
[379075454,1755115907720,-1219.51,0.00022739,2]
[379075455,1755115907729,-1932.04,0.00022739,2]
[379075456,1755115907738,-460.0,0.00022739,2]
[379075457,1755115907747,-460.0,0.00022739,2]
[379075458,1755115907757,-460.0,0.00022739,2]
[379075459,1755115907766,-814.53,0.00022739,2]
[379075460,1755115907776,-460.0,0.00022739,2]
[379075461,1755115907785,-501.55953832,0.00022739,2]
[379075462,1755115907795,-812.34,0.00022739,2]
[379075463,1755115907804,-460.0,0.00022739,2]
[379075464,1755115907814,-1280.72,0.00022739,2]
[379075465,1755115907823,-735.0,0.00022739,2]
[379075466,1755115907833,-545.15,0.00022739,2]
[379075467,1755115907842,-4267.69,0.00022739,2]
[379075468,1755115907852,-4192.29,0.00022739,2]
[379075469,1755115907861,-337.97968403,0.00022739,2]
[379075470,1755115907870,-1382.67,0.00022739,2]
[379075471,1755115907879,-923.5,0.00022739,2]
[379075472,1755115907888,-567.17,0.00022739,2]
[379075473,1755115907898,-1960.74,0.00022739,2]
[379075474,1755115907907,-650.46,0.00022739,2]
[379075475,1755115907916,-672.78,0.00022739,2]
[379075476,1755115907925,-212.53073381,0.00022739,2]
[379075477,1755115907934,-543.86,0.00022739,2]
[379075478,1755115907943,-472.25,0.00022739,2]
[379075479,1755115907952,-460.0,0.00022739,2]
[379075480,1755115907963,-573.95,0.00022739,2]
[379075481,1755115907972,-1053.23,0.00022739,2]
[379075482,1755115908100,-460.0,0.00022739,2]
[379075483,1755115908123,-474.27,0.00022739,2]
[379075484,1755115908132,-576.66,0.00022739,2]
[379075485,1755115908142,-460.0,0.00022739,2]
[379075486,1755115908153,-460.0,0.00022739,2]
[379075487,1755115908163,-662.93,0.00022739,2]
[379075488,1755115908173,-460.0,0.00022739,2]
[379075489,1755115908184,-543.96,0.00022739,2]
[379075490,1755115908193,-460.0,0.00022739,2]
[379075491,1755115908202,-669.33,0.00022739,2]
[379075492,1755115908212,-517.29935119,0.00022739,2]
[379075493,1755115908222,-946.5,0.00022739,2]
[379075494,1755115908234,-489.38,0.00022739,2]
[379075495,1755115908243,-1436.04,0.00022739,2]
[379075496,1755115908253,-507.52,0.00022739,2]
[379075497,1755115908262,-1824.0,0.00022739,2]
[379075498,1755115908272,-478.0,0.00022739,2]
[379075499,1755115908281,-542.62,0.00022739,2]
[379075500,1755115908290,-460.0,0.00022739,2]
[379075501,1755115908300,-1363.79,0.00022739,2]
[379075502,1755115908310,-460.0,0.00022739,2]
[379075503,1755115908320,-710.55,0.00022739,2]
[379075504,1755115908329,-2530.94,0.00022739,2]
[379075505,1755115908339,-1829.45,0.00022739,2]
[379075506,1755115908348,-460.0,0.00022739,2]
[379075507,1755115908357,-573.95,0.00022739,2]
[379075508,1755115908366,-1224.78,0.00022739,2]
[379075509,1755115908375,-1547.71,0.00022739,2]
[379075510,1755115908384,-460.0,0.00022739,2]
[379075511,1755115908394,-737.39,0.00022739,2]
[379075512,1755115908403,-1811.96,0.00022739,2]
[379075513,1755115908412,-233.45860791,0.00022739,2]
[379075514,1755115908421,-460.0,0.00022739,2]
[379075515,1755115908431,-519.33529646,0.00022739,2]
[379075516,1755115908440,-460.0,0.00022739,2]
[379075517,1755115908449,-1053.5,0.00022739,2]
[379075518,1755115908458,-1353.67,0.00022739,2]
[379075519,1755115908467,-460.0,0.00022739,2]
[379075520,1755115908476,-3653.82,0.00022739,2]
[379075521,1755115908486,-3269.31,0.00022739,2]
[379075522,1755115908495,-460.0,0.00022739,2]
[379075523,1755115908505,-472.6,0.00022739,2]
[379075524,1755115908514,-854.33,0.00022739,2]
[379075525,1755115908523,-3963.71,0.00022739,2]
[379075526,1755115908533,-460.0,0.00022739,2]
[379075527,1755115908542,-746.01,0.00022739,2]
[379075528,1755115908551,-661.67,0.00022739,2]
[379075529,1755115908561,-2762.44,0.00022739,2]
[379075530,1755115908572,-635.51,0.00022739,2]
[379075531,1755115908581,-770.63,0.00022739,2]
[379075532,1755115908591,-1663.54,0.00022739,2]
[379075533,1755115908601,-460.0,0.00022739,2]
[379075534,1755115908610,-1920.17,0.00022739,2]
[379075535,1755115908619,-950.59,0.00022739,2]
[379075536,1755115908628,-823.48,0.00022739,2]
[379075537,1755115908637,-480.24,0.00022739,2]
[379075538,1755115908647,-460.0,0.00022739,2]
[379075539,1755115908656,-852.98,0.00022739,2]
[379075540,1755115908665,-786.91,0.00022739,2]
[379075541,1755115908674,-1415.94,0.00022739,2]
[379075542,1755115908684,-158.69524411,0.00022739,2]
[379075543,1755115908693,-1035.39,0.00022739,2]
[379075544,1755115908702,-564.18,0.00022739,2]
[379075545,1755115908711,-2050.41,0.00022739,2]
[379075546,1755115908722,-1312.86,0.00022739,2]
[379075547,1755115908732,-757.19,0.00022739,2]
[379075548,1755115908742,-596.07,0.00022739,2]
[379075549,1755115908751,-1767.5,0.00022739,2]
[379075550,1755115908760,-1225.81,0.00022739,2]
[379075551,1755115908770,-1655.44,0.00022739,2]
[379075552,1755115908780,-1021.93,0.00022739,2]
[379075553,1755115908789,-509.79,0.00022739,2]
[379075554,1755115908799,-460.0,0.00022739,2]
[379075555,1755115908809,-1703.22,0.00022739,2]
[379075556,1755115908818,-460.0,0.00022739,2]
[379075557,1755115908828,-460.0,0.00022739,2]
[379075558,1755115908838,-791.06,0.00022739,2]
[379075559,1755115908847,-4058.25,0.00022739,2]
[379075560,1755115908856,-460.0,0.00022739,2]
[379075561,1755115908866,-539.21,0.00022739,2]
[379075562,1755115908875,-460.0,0.00022739,2]
[379075563,1755115908885,-460.0,0.00022739,2]
[379075564,1755115908895,-460.0,0.00022739,2]
[379075565,1755115908904,-2019.38,0.00022739,2]
[379075566,1755115908913,-460.0,0.00022739,2]
[379075567,1755115908923,-6700.12,0.00022739,2]
[379075568,1755115908932,-1104.55,0.00022739,2]
[379075569,1755115908942,-460.0,0.00022739,2]
[379075570,1755115908951,-684.95,0.00022739,2]
[379075571,1755115908961,-1758.47,0.00022739,2]
[379075572,1755115908971,-460.0,0.00022739,2]
[379075573,1755115908980,-460.0,0.00022739,2]
[379075574,1755115908990,-1671.8,0.00022739,2]
[379075575,1755115909000,-11030.84,0.00022739,2]
[379075576,1755115909010,-460.0,0.00022739,2]
[379075577,1755115909019,-460.0,0.00022739,2]
[379075578,1755115909029,-460.0,0.00022739,2]
[379075579,1755115909039,-460.0,0.00022739,2]
[379075580,1755115909048,-762.63,0.00022739,2]
[379075581,1755115909068,-8448.68,0.00022739,2]
[379075582,1755115909088,-3051.43,0.00022739,2]
[379075583,1755115909108,-460.0,0.00022739,2]
[379075584,1755115909128,-460.0,0.00022739,2]
[379075585,1755115909149,-691.76,0.00022739,2]
[379075586,1755115909167,-219.31303613,0.00022739,2]
[379075587,1755115909186,-472.43441112,0.00022739,2]
[379075588,1755115909202,-460.0,0.00022739,2]
[379075589,1755115909217,-972.0,0.00022755,2]
[379075590,1755115909234,-636.0,0.00022755,2]
[379075591,1755115909253,-3500.0,0.0002276,2]
[379075592,1755115909272,-1000.0,0.00022764,2]
[379075593,1755115909285,-153.435149,0.00022943,2]
[379075594,1755115909303,-160.0,0.00023,2]
[379075595,1755115909317,-1462.191758,0.00023013,7]
[379075596,1755115909334,-1462.191758,0.00023013,7]
[379075597,1755115909346,-151.0,0.00023013,7]
[379075598,1755115909361,-151.0,0.00023013,7]
[379075599,1755115909376,-151.0,0.00023013,7]
[379075600,1755115909390,-732.95,0.00023013,2]
[379075601,1755115909404,-1719.5,0.00023013,2]
[379075602,1755115909418,-460.0,0.00023013,2]
[379075603,1755115909432,-662.8,0.00023013,2]
[379075604,1755115909446,-578.27,0.00023013,2]
[379075605,1755115909460,-462.01,0.00023013,2]
[379075606,1755115909475,-460.0,0.00023013,2]
[379075607,1755115909489,-469.49,0.00023013,2]
[379075608,1755115909503,-460.0,0.00023013,2]
[379075609,1755115909517,-475.12,0.00023013,2]
[379075610,1755115909531,-232.56390453,0.00023013,2]
[379075611,1755115909545,-585.4,0.00023013,2]
[379075612,1755115909561,-460.0,0.00023013,2]
[379075613,1755115909573,-701.63,0.00023013,2]
[379075614,1755115909587,-460.0,0.00023013,2]
[379075615,1755115909601,-460.0,0.00023013,2]
[379075616,1755115909614,-506.15,0.00023013,2]
[379075617,1755115909628,-772.37,0.00023013,2]
[379075618,1755115909639,-460.0,0.00023013,2]
[379075619,1755115909648,-460.0,0.00023013,2]
[379075620,1755115909658,-460.0,0.00023013,2]
[379075621,1755115909667,-460.0,0.00023013,2]
[379075622,1755115909676,-460.0,0.00023013,2]
[379075623,1755115909685,-460.0,0.00023013,2]
[379075624,1755115909695,-460.0,0.00023013,2]
[379075625,1755115909704,-499.24,0.00023013,2]
[379075626,1755115909713,-460.0,0.00023013,2]
[379075627,1755115909723,-1083.49,0.00023013,2]
[379075628,1755115909732,-634.17,0.00023013,2]
[379075629,1755115909741,-1683.37,0.00023013,2]
[379075630,1755115909750,-1312.7,0.00023013,2]
[379075631,1755115909759,-552.5,0.00023013,2]
[379075632,1755115909769,-460.0,0.00023013,2]
[379075633,1755115909778,-460.0,0.00023013,2]
[379075634,1755115909787,-1170.68,0.00023013,2]
[379075635,1755115909797,-460.0,0.00023013,2]
[379075636,1755115909807,-460.0,0.00023013,2]
[379075637,1755115909816,-788.14,0.00023013,2]
[379075638,1755115909825,-460.0,0.00023013,2]
[379075639,1755115909835,-740.52,0.00023013,2]
[379075640,1755115909844,-460.0,0.00023013,2]
[379075641,1755115909854,-1140.3,0.00023013,2]
[379075642,1755115909863,-863.07,0.00023013,2]
[379075643,1755115909872,-1663.95,0.00023013,2]
[379075644,1755115909882,-961.59,0.00023013,2]
[379075645,1755115909891,-460.0,0.00023013,2]
[379075646,1755115909901,-1069.56,0.00023013,2]
[379075647,1755115909911,-460.0,0.00023013,2]
[379075648,1755115909920,-1437.38,0.00023013,2]
[379075649,1755115909929,-460.0,0.00023013,2]
[379075650,1755115909939,-460.0,0.00023013,2]
[379075651,1755115909948,-460.0,0.00023013,2]
[379075652,1755115909957,-460.0,0.00023013,2]
[379075653,1755115909967,-460.0,0.00023013,2]
[379075654,1755115909976,-460.0,0.00023013,2]
[379075655,1755115909985,-460.0,0.00023013,2]
[379075656,1755115909995,-467.85,0.00023013,2]
[379075657,1755115910004,-460.0,0.00023013,2]
[379075658,1755115910013,-460.0,0.00023013,2]
[379075659,1755115910022,-602.53,0.00023013,2]
[379075660,1755115910031,-905.73,0.00023013,2]
[379075661,1755115910040,-460.0,0.00023013,2]
[379075662,1755115910049,-460.0,0.00023013,2]
[379075663,1755115910060,-2758.86,0.00023013,2]
[379075664,1755115910070,-735.89,0.00023013,2]
[379075665,1755115910079,-504.54,0.00023013,2]
[379075666,1755115910088,-460.0,0.00023013,2]
[379075667,1755115910098,-619.7,0.00023013,2]
[379075668,1755115910108,-618.3,0.00023013,2]
[379075669,1755115910117,-577.53,0.00023013,2]
[379075670,1755115910126,-477.37,0.00023013,2]
[379075671,1755115910136,-460.0,0.00023013,2]
[379075672,1755115910146,-621.59,0.00023013,2]
[379075673,1755115910155,-718.3,0.00023013,2]
[379075674,1755115910164,-482.48,0.00023013,2]
[379075675,1755115910173,-460.0,0.00023013,2]
[379075676,1755115910187,-460.0,0.00023013,2]
[379075677,1755115910197,-841.58,0.00023013,2]
[379075678,1755115910208,-460.0,0.00023013,2]
[379075679,1755115910218,-460.0,0.00023013,2]
[379075680,1755115910227,-244.16395071,0.00023013,2]
[379075681,1755115910236,-460.0,0.00023013,2]
[379075682,1755115910245,-1057.0,0.00023013,2]
[379075683,1755115910254,-725.98,0.00023013,2]
[379075684,1755115910740,-460.0,0.00023013,2]
[379075685,1755115910756,-1761.85,0.00023013,2]
[379075686,1755115910770,-573.0,0.00023013,2]
[379075687,1755115910781,-668.47,0.00023013,2]
[379075688,1755115910790,-611.81,0.00023013,2]
[379075689,1755115910799,-1341.69,0.00023013,2]
[379075690,1755115910808,-659.86,0.00023013,2]
[379075691,1755115910817,-460.0,0.00023013,2]
[379075692,1755115910826,-740.97,0.00023013,2]
[379075693,1755115910835,-460.0,0.00023013,2]
[379075694,1755115910844,-563.24,0.00023013,2]
[379075695,1755115910854,-758.65,0.00023013,2]
[379075696,1755115910863,-2239.5,0.00023013,2]
[379075697,1755115910875,-1881.39,0.00023013,2]
[379075698,1755115910884,-307.70383103,0.00023013,2]
[379075699,1755115910895,-850.59,0.00023013,2]
[379075700,1755115910906,-2386.49,0.00023013,2]
[379075701,1755115910916,-989.38,0.00023013,2]
[379075702,1755115910925,-460.0,0.00023013,2]
[379075703,1755115910934,-753.2,0.00023013,2]
[379075704,1755115910944,-6147.95,0.00023013,2]
[379075705,1755115910953,-460.0,0.00023013,2]
[379075706,1755115910962,-1410.98,0.00023013,2]
[379075707,1755115910971,-1219.51,0.00023013,2]
[379075708,1755115910980,-1932.04,0.00023013,2]
[379075709,1755115910989,-237.20938486,0.00023013,2]
[379075710,1755115910998,-460.0,0.00023013,2]
[379075711,1755115911007,-814.53,0.00023013,2]
[379075712,1755115911016,-460.0,0.00023013,2]
[379075713,1755115911025,-460.0,0.00023013,2]
[379075714,1755115911034,-812.34,0.00023013,2]
[379075715,1755115911043,-460.0,0.00023013,2]
[379075716,1755115911052,-1280.72,0.00023013,2]
[379075717,1755115911062,-735.0,0.00023013,2]
[379075718,1755115911072,-545.15,0.00023013,2]
[379075719,1755115911080,-4267.69,0.00023013,2]
[379075720,1755115911090,-4192.29,0.00023013,2]
[379075721,1755115911099,-1382.67,0.00023013,2]
[379075722,1755115911108,-923.5,0.00023013,2]
[379075723,1755115911117,-567.17,0.00023013,2]
[379075724,1755115911126,-1960.74,0.00023013,2]
[379075725,1755115911135,-650.46,0.00023013,2]
[379075726,1755115911145,-672.78,0.00023013,2]
[379075727,1755115911154,-543.86,0.00023013,2]
[379075728,1755115911163,-472.25,0.00023013,2]
[379075729,1755115911172,-460.0,0.00023013,2]
[379075730,1755115911184,-573.95,0.00023013,2]
[379075731,1755115911193,-1053.23,0.00023013,2]
[379075732,1755115911202,-460.0,0.00023013,2]
[379075733,1755115911211,-474.27,0.00023013,2]
[379075734,1755115911220,-460.0,0.00023013,2]
[379075735,1755115911231,-576.66,0.00023013,2]
[379075736,1755115911240,-460.0,0.00023013,2]
[379075737,1755115911249,-662.93,0.00023013,2]
[379075738,1755115911260,-460.0,0.00023013,2]
[379075739,1755115911269,-543.96,0.00023013,2]
[379075740,1755115911279,-460.0,0.00023013,2]
[379075741,1755115911288,-669.33,0.00023013,2]
[379075742,1755115911297,-570.23711127,0.00023013,2]
[379075743,1755115911318,-376.26288873,0.00023013,2]
[379075744,1755115911328,-84.68885443,0.00023013,2]
[379075745,1755115911343,-404.69114557,0.00023013,2]
[379075746,1755115911353,-1436.04,0.00023013,2]
[379075747,1755115911362,-507.52,0.00023013,2]
[379075748,1755115911371,-1824.0,0.00023013,2]
[379075749,1755115911381,-478.0,0.00023013,2]
[379075750,1755115911390,-542.62,0.00023013,2]
[379075751,1755115911399,-368.6502,0.00023013,2]
[379075752,1755115911593,-91.3498,0.00023013,2]
[379075753,1755115911603,-1363.79,0.00023013,2]
[379075754,1755115911612,-460.0,0.00023013,2]
[379075755,1755115911621,-710.55,0.00023013,2]
[379075756,1755115911630,-2530.94,0.00023013,2]
[379075757,1755115911640,-1829.45,0.00023013,2]
[379075758,1755115911649,-460.0,0.00023013,2]
[379075759,1755115911658,-573.95,0.00023013,2]
[379075760,1755115911667,-1224.78,0.00023013,2]
[379075761,1755115911676,-1547.71,0.00023013,2]
[379075762,1755115911686,-460.0,0.00023013,2]
[379075763,1755115911695,-737.39,0.00023013,2]
[379075764,1755115911704,-1811.96,0.00023013,2]
[379075765,1755115911713,-423.0720558,0.00023013,2]
[379075766,1755115911751,-36.9279442,0.00023013,2]
[379075767,1755115911761,-460.0,0.00023013,2]
[379075768,1755115911770,-1053.5,0.00023013,2]
[379075769,1755115911779,-1353.67,0.00023013,2]
[379075770,1755115911788,-460.0,0.00023013,2]
[379075771,1755115911797,-2589.77047157,0.00023013,2]
[379075772,1755116063855,10000.0,0.00018215,2]
[379075783,1755116480453,310.363958,0.00018137,2]
[379075795,1755116727801,323.507169,0.00013699,2]
[379075801,1755116756263,2400.9951595,0.00018272,2]
[379075865,1755116871623,39958.0402291,0.00018,2]
[379075868,1755116875729,4986.2186944,0.00018,2]
[379075877,1755116895206,416.40426904,0.00010618,2]
[379075879,1755116896944,11417.27207131,0.000125,2]
[379075885,1755116905643,2092.34253136,0.000176,2]
[379075895,1755116910258,283.55359671,0.0001,2]
[379075912,1755116915777,56498.20752713,0.00017,2]
[379075920,1755116918600,14664.89511334,0.00018,2]
[379075923,1755116920121,210.093655,0.000149,2]
[379075998,1755117031916,-309.61770391,0.00018312,2]
[379076001,1755117031925,-203.0,0.00018321,2]
[379076003,1755117031935,-2436.0,0.00018333,2]
[379076006,1755117031944,-2344.16354,0.000185,2]
[379076007,1755117031953,-200.2,0.00018686,2]
[379076010,1755117031963,-1200.0,0.00018899,2]
[379076012,1755117031973,-3526.22630555,0.000189,2]
[379076014,1755117031983,-300.0,0.00019076,2]
[379076016,1755117031992,-125.93683346,0.00019076,2]
[379076019,1755117032003,-174.06316654,0.00019076,2]
[379076021,1755117032012,-1200.0,0.00019077,2]
[379076023,1755117032021,-1214.00502961,0.00019078,2]
[379076025,1755117032032,-2229.60296234,0.00019078,2]
[379076027,1755117032043,-4749.75762911,0.00019078,2]
[379076029,1755117032052,-500.0,0.00019173,2]
[379076031,1755117032062,-259.92604748,0.00019173,2]
[379076033,1755117032071,-566.55677288,0.00019173,2]
[379076035,1755117032080,-370.03099599,0.00019173,2]
[379076134,1755117038144,-129.96900401,0.00019173,2]
[379076136,1755117038154,-500.0,0.00019173,2]
[379076138,1755117038163,-500.0,0.00019177,2]
[379076140,1755117038172,-500.0,0.00019177,2]
[379076142,1755117038181,-500.0,0.00019177,2]
[379076144,1755117038191,-475.75737799,0.00019177,2]
[379076146,1755117038200,-500.0,0.00019177,2]
[379076148,1755117038209,-619.24994859,0.00019177,2]
[379076150,1755117038218,-480.513505,0.00019178,2]
[379076152,1755117038228,-480.513505,0.00019178,2]
[379076154,1755117038237,-151.0,0.00019178,2]
[379076156,1755117038246,-460.0,0.00019178,2]
[379076158,1755117038256,-151.0,0.00019178,2]
[379076160,1755117038265,-151.0,0.00019178,2]
[379076162,1755117038275,-460.0,0.00019178,2]
[379076164,1755117038285,-189.57867921,0.00019178,2]
[379076181,1755117039819,-460.0,0.00019178,2]
[379076182,1755117039829,-460.0,0.00019178,2]
[379076183,1755117039838,-460.0,0.00019178,2]
[379076184,1755117039848,-361.615044,0.00019178,2]
[379076185,1755117039858,-460.0,0.00019178,2]
[379076186,1755117039868,-233.37953703,0.00019178,2]
[379076188,1755117039877,-460.0,0.00019178,2]
[379076189,1755117039887,-460.0,0.00019178,2]
[379076190,1755117039896,-275.390677,0.00019178,2]
[379076191,1755117039906,-183.79375977,0.00019178,2]
[379076192,1755117039916,-831.96,0.00019178,2]
[379076193,1755117039926,-460.0,0.00019178,2]
[379076194,1755117039935,-460.0,0.00019178,2]
[379076195,1755117039945,-460.0,0.00019178,2]
[379076196,1755117039956,-460.0,0.00019178,2]
[379076197,1755117039965,-460.0,0.00019178,2]
[379076198,1755117039974,-460.0,0.00019178,2]
[379076199,1755117039984,-234.445802,0.00019178,2]
[379076200,1755117039993,-460.0,0.00019178,2]
[379076201,1755117040003,-234.445802,0.00019178,2]
[379076202,1755117040012,-460.0,0.00019178,2]
[379076203,1755117040023,-458.23065278,0.00019178,2]
[379076204,1755117040032,-460.0,0.00019178,2]
[379076205,1755117040041,-460.0,0.00019178,2]
[379076206,1755117040052,-460.0,0.00019178,2]
[379076207,1755117040061,-460.0,0.00019178,2]
[379076208,1755117040071,-460.0,0.00019178,2]
[379076209,1755117040080,-460.0,0.00019178,2]
[379076210,1755117040089,-460.0,0.00019178,2]
[379076211,1755117040098,-460.0,0.00019178,2]
[379076212,1755117040107,-462.9413963,0.00019178,2]
[379076213,1755117040116,-460.0,0.00019178,2]
[379076214,1755117040125,-460.0,0.00019178,2]
[379076216,1755117040134,-460.0,0.00019178,2]
[379076217,1755117040143,-460.0,0.00019178,2]
[379076218,1755117040153,-460.0,0.00019178,2]
[379076219,1755117040162,-460.0,0.00019178,2]
[379076220,1755117040171,-460.0,0.00019178,2]
[379076221,1755117040180,-460.0,0.00019178,2]
[379076222,1755117040189,-460.0,0.00019178,2]
[379076223,1755117040198,-460.0,0.00019178,2]
[379076224,1755117040207,-460.0,0.00019178,2]
[379076225,1755117040216,-308.94453836,0.00019178,2]
[379076226,1755117040225,-404.03581927,0.00019178,2]
[379076227,1755117040239,-55.96418073,0.00019178,2]
[379076228,1755117040248,-460.0,0.00019178,2]
[379076229,1755117040257,-460.0,0.00019178,2]
[379076230,1755117040266,-460.0,0.00019178,2]
[379076231,1755117040275,-476.48,0.00019178,2]
[379076232,1755117040284,-460.0,0.00019178,2]
[379076233,1755117040293,-460.0,0.00019178,2]
[379076234,1755117040303,-460.0,0.00019178,2]
[379076235,1755117040312,-460.0,0.00019178,2]
[379076236,1755117040324,-480.27,0.00019178,2]
[379076237,1755117040335,-460.0,0.00019178,2]
[379076238,1755117040345,-460.0,0.00019178,2]
[379076239,1755117040354,-460.0,0.00019178,2]
[379076240,1755117040363,-151.0,0.00019178,2]
[379076241,1755117040373,-460.0,0.00019178,2]